fUSD/lending_fUSD_20240104
["ID","MTS","AMOUNT","RATE_DAILY","PERIOD"]
[310103317,1704335434204,-533.86663216,0.00028558,2]
[310103318,1704335434215,-279.71195938,0.00028559,2]
[310103319,1704335434224,-2467.45875247,0.0002856,2]
[310103320,1704335434234,-466.0,0.00028849,5]
[310103321,1704335434243,-159.40151911,0.000289,4]
[310103322,1704335434252,-400.0,0.00029,3]
[310103323,1704335434261,-390.61630672,0.00029033,2]
[310103337,1704335438305,-650.0,0.00025,2]
[310103338,1704335438315,-4082.11132775,0.00029033,2]
[310103339,1704335438324,-434.15,0.00029093,2]
[310103340,1704335438333,-247.29346188,0.00029149,2]
[310103341,1704335438343,-370.79,0.00029165,2]
[310103342,1704335438352,-857.02,0.000292,2]
[310103343,1704335438361,-159.40151913,0.00029344,4]
[310103344,1704335438371,-3514.68333389,0.00029429,6]
[310103345,1704335438380,-418.0569439,0.00029429,2]
[310103346,1704335438389,-150.0,0.00029442,2]
[310103347,1704335438398,-150.0,0.00029442,2]
[310103348,1704335438408,-157.58,0.00029442,2]
[310103349,1704335438417,-155.87606101,0.00029443,2]
[310103350,1704335438426,-529.98815367,0.00029443,2]
[310103351,1704335438435,-32844.23729782,0.00029443,2]
[310103352,1704335438536,-961.40654544,0.00029443,2]
[310103366,1704335440745,-2949.69033149,0.00029443,2]
[310103367,1704335440757,-345.66681731,0.00029443,2]
[310103368,1704335440801,-579.9074288,0.00029443,2]
[310103377,1704335443465,-3044.79253169,0.00029443,2]
[310103394,1704335450757,-10494.92675936,0.00029442,2]
[310103395,1704335450766,-22836.29273374,0.00029443,2]
[310103396,1704335451121,-23393.0454864,0.00029443,2]
[310103504,1704336183747,210.0,0.00022372,2]
[310103508,1704336396386,559.05949396,0.00022372,2]
[310103512,1704336548460,-260.81479374,0.00024776,2]
[310103513,1704336548480,-430.24132448,0.00024776,2]
[310103514,1704336548502,-391.42259399,0.00024777,2]
[310103540,1704336632424,-155.0,0.00024675,2]
[310103541,1704336632434,-160.93640788,0.00024676,2]
[310103542,1704336632444,-340.59958399,0.00024772,2]
[310103543,1704336632457,-10154.32717537,0.00024772,2]
[310103544,1704336632469,-11647.7685823,0.00024773,2]
[310103545,1704336632479,-7487.48797482,0.00024774,2]
[310103546,1704336632489,-612.5659,0.00024787,2]
[310103547,1704336632499,-3892.0,0.00025,2]
[310103548,1704336632510,-1015.43343715,0.00025977,2]
[310103549,1704336632520,-201.39591919,0.00025978,2]
[310103550,1704336632529,-379.07,0.00025979,2]
[310103551,1704336632539,-3182.01197305,0.00026898,2]
[310103552,1704336632549,-1000.0,0.00026899,2]
[310103553,1704336632559,-1514.0,0.000269,2]
[310103554,1704336632569,-14500.0,0.000269,2]
[310103555,1704336632579,-595.47,0.000269,2]
[310103556,1704336632588,-499.99,0.000269,2]
[310103557,1704336632599,-783.43,0.000269,2]
[310103558,1704336632609,-430.24132448,0.00027399,2]
[310103559,1704336632619,-400.0,0.000274,2]
[310103560,1704336632629,-627.01204974,0.00027643,6]
[310103561,1704336632639,-210.0,0.00027644,2]
[310103562,1704336632649,-2772.43,0.00027738,2]
[310103563,1704336632659,-300.85,0.00027834,2]
[310103564,1704336632669,-1000.0,0.00027884,2]
[310103565,1704336632679,-2612.81,0.00027945,2]
[310103566,1704336632689,-150.14,0.00027945,2]
[310103567,1704336632700,-379.07,0.00028243,2]
[310103568,1704336632710,-172.86,0.00028457,2]
[310103569,1704336632720,-500.0,0.00028548,2]
[310103570,1704336632730,-160.0,0.0002857,2]
[310103571,1704336632740,-259.0,0.0002857,2]
[310103572,1704336632750,-155.14,0.00028679,2]
[310103573,1704336632760,-300.85,0.00028813,2]
[310103574,1704336632770,-500.0,0.00028852,2]
[310103575,1704336632780,-160.93640787,0.00028863,2]
[310103576,1704336632790,-301.48,0.00029103,2]
[310103577,1704336632800,-1110.46001147,0.0002915,2]
[310103578,1704336632811,-500.0,0.00029155,2]
[310103579,1704336632821,-34563.44349055,0.000292,2]
[310103580,1704336632830,-584.325,0.000293,2]
[310103581,1704336632840,-153.68376971,0.00029339,2]
[310103582,1704336632850,-172.86,0.00029406,2]
[310103584,1704336632859,-417.6120678,0.00029425,2]
[310103585,1704336632870,-318.02,0.00029431,10]
[310103586,1704336632880,-157.30494743,0.00029439,2]
[310103587,1704336632890,-278.31410173,0.00029439,2]
[310103588,1704336632901,-411.15103307,0.00029439,2]
[310103589,1704336632910,-155.0,0.00029439,2]
[310103590,1704336632923,-1430.2512739,0.0002944,6]
[310103591,1704336632933,-1352.86891967,0.0002944,2]
[310103592,1704336632953,-1120.32492377,0.0002944,2]
[310103593,1704336632970,-1032.05682951,0.0002944,2]
[310103594,1704336632984,-396.58070581,0.0002944,2]
[310103595,1704336632998,-1080.87483973,0.0002944,2]
[310103597,1704336636118,-5275.16379703,0.0002944,2]
[310103598,1704336636131,-2499.87117532,0.0002944,2]
[310103599,1704336636176,-13719.45312898,0.0002944,2]
[310103600,1704336636189,-5882.9,0.0002944,2]
[310103601,1704336636204,-8055.08507817,0.0002944,2]
[310103629,1704336638348,-27466.57458339,0.0002944,2]
[310103630,1704336638358,-12213.94182904,0.00029441,2]
[310103631,1704336638367,-187.45258331,0.00029441,2]
[310103632,1704336638377,-25332.76346264,0.00029442,2]
[310103633,1704336638574,-5666.29768447,0.00029442,2]
[310103634,1704336638586,-310.98158708,0.00029442,2]
[310103635,1704336638598,-871.51008591,0.00029442,2]
[310103636,1704336638609,-1353.83637752,0.00029442,2]
[310103637,1704336638621,-965.21631766,0.00029442,2]
[310103638,1704336638641,-368.73272136,0.00029442,2]
[310103640,1704336640830,-3677.12697885,0.00029442,2]
[310103641,1704336640842,-503.505,0.00029442,2]
[310103642,1704336640899,-355.12996767,0.00029442,2]
[310103643,1704336641662,-7242.0,0.00029442,2]
[310103644,1704336641673,-1878.11899884,0.00029442,2]
[310103645,1704336641780,-360.21,0.00029442,2]
[310103646,1704336641792,-516.2281965,0.00029442,2]
[310103652,1704336643325,-17447.11277836,0.00029442,2]
[310103653,1704336643336,-1828.46479904,0.00029443,2]
[310103654,1704336643494,-2075.4802393,0.00029443,2]
[310103655,1704336643503,-492.49976452,0.00029444,2]
[310103656,1704336643515,-7.50023548,0.00029444,2]
[310103657,1704336643525,-500.0,0.00029444,2]
[310103658,1704336643534,-11124.72085966,0.00029444,2]
[310103659,1704336643546,-1985.81148339,0.00029444,2]
[310103682,1704336646406,-2507.23372484,0.0002851,2]
[310103683,1704336646416,-201.39591919,0.00029443,2]
[310103684,1704336646426,-506.50570835,0.00029444,2]
[310103685,1704336646435,-311.84676827,0.00029444,2]
[310103686,1704336646445,-500.0,0.00029459,2]
[310103687,1704336646455,-634.913,0.00029699,2]
[310103688,1704336646464,-2433.851,0.00029699,2]
[310103689,1704336646473,-390.754,0.00029699,2]
[310103690,1704336646482,-837.0,0.00029699,2]
[310103691,1704336646492,-1477.094,0.00029699,2]
[310103692,1704336646501,-943.0,0.00029699,2]
[310103693,1704336646510,-635.696,0.00029699,2]
[310103694,1704336646520,-1232.991,0.00029699,2]
[310103695,1704336646529,-997.892,0.00029699,2]
[310103696,1704336646538,-1939.896,0.00029699,2]
[310103697,1704336646548,-1252.696,0.00029699,2]
[310103698,1704336646557,-755.507,0.00029699,2]
[310103699,1704336646566,-212.114,0.00029699,2]
[310103700,1704336646576,-509.324,0.00029699,2]
[310103701,1704336646586,-426.865,0.00029699,2]
[310103702,1704336646597,-319.892,0.00029699,2]
[310103703,1704336646607,-2283.785,0.00029699,2]
[310103704,1704336646617,-15614.846,0.00029699,2]
[310103705,1704336646627,-2915.224,0.00029699,2]
[310103706,1704336646637,-150.0,0.00029699,2]
[310103708,1704336646646,-150.208,0.00029699,2]
[310103709,1704336646656,-1235.229,0.00029699,2]
[310103710,1704336646665,-1339.059,0.00029699,2]
[310103711,1704336646675,-353.436,0.00029699,2]
[310103712,1704336646684,-150.0,0.00029699,2]
[310103713,1704336646694,-150.227,0.00029699,2]
[310103714,1704336646705,-284.928,0.00029699,2]
[310103715,1704336646715,-1026.508,0.00029699,2]
[310103716,1704336646725,-150.207,0.00029699,2]
[310103717,1704336646735,-28190.73081817,0.00029755,2]
[310103718,1704336646745,-500.0,0.00029763,2]
[310103719,1704336646755,-1257.72277375,0.00029788,2]
[310103720,1704336646765,-300.85,0.00029791,2]
[310103721,1704336646775,-157.0,0.00029812,2]
[310103722,1704336646784,-407.06,0.00029886,2]
[310103723,1704336646794,-20000.0,0.0003,2]
[310103724,1704336646804,-1068.61358058,0.0003,4]
[310103725,1704336646814,-275.50683105,0.0003,4]
[310103726,1704336646823,-155.0,0.0003,2]
[310103727,1704336646833,-2738.84600807,0.0003,2]
[310103728,1704336646843,-2366.51354184,0.0003,2]
[310103729,1704336646853,-4321.31998309,0.0003,4]
[310103730,1704336646863,-1000.0,0.0003,2]
[310103731,1704336646873,-509.16822018,0.0003,6]
[310103732,1704336646883,-1168.57895555,0.0003,4]
[310103733,1704336646892,-1214.03407924,0.0003,31]
[310103734,1704336646902,-960.07,0.0003,2]
[310103735,1704336646913,-3000.0,0.0003,2]
[310103736,1704336646924,-153.68376969,0.00030005,2]
[310103737,1704336646934,-500.0,0.00030066,2]
[310103738,1704336646943,-500.0,0.00030136,4]
[310103739,1704336646953,-500.0,0.00030136,4]
[310103740,1704336646965,-500.0,0.00030136,4]
[310103741,1704336646974,-500.0,0.00030136,4]
[310103742,1704336646984,-500.0,0.00030136,4]
[310103743,1704336646996,-500.0,0.00030136,4]
[310103744,1704336647006,-500.0,0.00030136,4]
[310103745,1704336647016,-500.0,0.00030136,4]
[310103746,1704336647025,-500.0,0.00030136,4]
[310103747,1704336647035,-500.0,0.00030136,4]
[310103748,1704336647045,-500.0,0.00030136,4]
[310103749,1704336647054,-500.0,0.00030136,4]
[310103750,1704336647064,-500.0,0.00030136,4]
[310103751,1704336647074,-500.0,0.00030136,4]
[310103752,1704336647084,-500.0,0.00030136,4]
[310103753,1704336647094,-500.0,0.00030136,4]
[310103754,1704336647103,-500.0,0.00030136,4]
[310103755,1704336647112,-500.0,0.00030136,4]
[310103757,1704336647122,-500.0,0.00030136,4]
[310103758,1704336647132,-500.0,0.00030136,4]
[310103759,1704336647141,-500.0,0.00030136,4]
[310103760,1704336647151,-500.0,0.00030136,4]
[310103761,1704336647161,-157.40104,0.00030198,2]
[310103762,1704336647171,-157.40104,0.00030298,2]
[310103763,1704336647180,-172.86,0.00030354,2]
[310103764,1704336647190,-500.0,0.0003037,2]
[310103765,1704336647199,-157.40104,0.00030398,2]
[310103766,1704336647210,-157.40104,0.00030498,2]
[310103767,1704336647219,-9000.0,0.000305,2]
[310103768,1704336647229,-379.07,0.00030506,2]
[310103769,1704336647238,-157.40104,0.00030598,2]
[310103770,1704336647248,-153.68376969,0.0003067,2]
[310103771,1704336647268,-500.0,0.00030674,2]
[310103772,1704336647279,-157.40104,0.00030698,2]
[310103773,1704336647290,-197.2524744,0.00030701,4]
[310103774,1704336647301,-300.85,0.0003077,2]
[310103775,1704336647311,-153.84,0.00030781,2]
[310103776,1704336647321,-157.40104,0.00030798,2]
[310103777,1704336647331,-157.40104,0.00030898,2]
[310103778,1704336647341,-1962.01274302,0.000309,14]
[310103779,1704336647352,-63702.4,0.000309,2]
[310103780,1704336647362,-432.12067261,0.000309,2]
[310103781,1704336647373,-500.0,0.00030977,2]
[310103782,1704336647383,-187.99129847,0.0003099,2]
[310103783,1704336647393,-3865.22552796,0.00030997,2]
[310103784,1704336647404,-157.40104,0.00030998,2]
[310103785,1704336647414,-157.58,0.00030999,2]
[310103786,1704336647425,-20000.0,0.00031,2]
[310103787,1704336647435,-231438.42918917,0.00031,2]
[310103788,1704336647452,-49362.84638341,0.00031,2]
[310103792,1704336670016,4951938.2710737,0.00023,2]
[310103795,1704336679007,3130.34429644,0.00021,2]
[310103796,1704336681190,8279.87914456,9e-05,2]
[310103798,1704336686496,822.10073388,0.00018,2]
[310103799,1704336687190,5499.4172127,0.000217,2]
[310103802,1704336692482,465.84200212,0.0001,2]
[310103803,1704336696947,8000.0,0.00011,2]
[310103806,1704336714263,16055.26859066,6.94e-05,2]
[310103808,1704336721203,5599.83449873,0.000155,2]
[310103811,1704336727389,415.042304,0.000199,3]
[310103814,1704336746708,1876.30895841,0.00015,2]
[310103817,1704336783372,21194.51850713,0.000225,2]
[310103819,1704336790481,205.0,9.8e-05,2]
[310103820,1704336794044,4903.63624821,0.0001305,2]
[310103821,1704336794515,238.13638628,0.000101,2]
[310103823,1704336816577,431.4279504,0.00023,2]
[310103824,1704336819905,3655.63910381,0.0002,2]
[310103827,1704336829172,12819.49051648,0.0002,2]
[310103828,1704336831160,3017101.65708794,0.00023,2]
[310103831,1704336848036,1000.0,0.000135,2]
[310103833,1704336848106,281.83971064,0.000125,2]
[310103841,1704336910714,704.46,0.00023,2]
[310103854,1704336975660,260.783348,0.00023,2]
[310103855,1704336976979,155.71926951,0.00023,2]
[310103856,1704336977380,155.55789535,0.00023,2]
[310103857,1704336977485,153970.33862162,0.00023,2]
[310103858,1704336985183,190.39487705,0.00023,2]
[310103859,1704336987776,1878.55456458,0.00023,2]
[310103860,1704336996826,542.81430331,0.00023,2]
[310103870,1704337008059,1878.55456458,0.00023,2]
[310103877,1704337014804,541.49950819,0.00023,2]
[310103878,1704337023773,1878.55456458,0.00023,2]
[310103879,1704337043903,775.2229529,0.00023,2]
[310103880,1704337074891,151.0,0.00029823,120]
[310103921,1704337243012,250.0,0.000192,2]
[310103925,1704337615896,151.0,0.00029904,120]
[310103926,1704337619204,163.15804489,0.00022909,2]
[310103943,1704337798768,10494.92675936,0.00023,2]
[310103944,1704337810817,2960.9948,0.00022902,2]
[310103945,1704337816004,1653.64166884,0.00023,2]
[310103960,1704337831507,-383.06666302,0.00023001,2]
[310103961,1704337831516,-155.0,0.00023001,2]
[310103962,1704337831525,-150.0,0.00023002,2]
[310103963,1704337831535,-116.3590409,0.00023002,2]
[310103964,1704337831548,-33.6409591,0.00023002,2]
[310103965,1704337831557,-1124.24363034,0.0002313,2]
[310103966,1704337831567,-328.38618578,0.000232,2]
[310103967,1704337831576,-169.39,0.0002334,2]
[310103968,1704337831585,-751.86974533,0.00023999,2]
[310103969,1704337831595,-430.24132448,0.00024,2]
[310103970,1704337831604,-209.0,0.00024644,2]
[310103971,1704337831614,-499.99,0.00024977,2]
[310103972,1704337831623,-201.39591919,0.00025653,2]
[310103973,1704337831848,-155.89814602,0.00025656,2]
[310103974,1704337831859,-350.0,0.00027,3]
[310103975,1704337831868,-398.98,0.00027264,2]
[310103976,1704337831878,-1827.71408976,0.00027367,2]
[310103977,1704337834016,-508.47962113,0.00023129,2]
[310103978,1704337834029,-1645.10329828,0.00023129,2]
[310103979,1704337834040,-409.96149532,0.00023129,2]
[310103980,1704337834079,-558.70524009,0.00023129,2]
[310103981,1704337834192,-576.53876221,0.00023129,2]
[310103982,1704337834204,-324.78073406,0.00023129,2]
[310103983,1704337834215,-399.90157605,0.00023129,2]
[310104018,1704337834524,-2350.0,0.00023129,2]
[310104020,1704337834536,-714.01724768,0.00023129,2]
[310104021,1704337834545,-57.80862375,0.00027367,2]
[310104050,1704337837634,-1295.14557837,0.00027367,2]
[310104051,1704337837645,-556.94216604,0.00027652,6]
[310104052,1704337837657,-2465.87990652,0.00027652,2]
[310104053,1704337837667,-371.55055673,0.00028499,2]
[310104054,1704337837679,-174.61081621,0.00028507,2]
[310104055,1704337837690,-1278.40121414,0.00028507,2]
[310104056,1704337837701,-10494.92675936,0.00028508,2]
[310104057,1704337837718,-31557.3304879,0.00028509,2]
[310104058,1704337837731,-232.98,0.00028978,2]
[310104059,1704337837745,-400.0,0.00029,3]
[310104060,1704337837757,-800.0,0.00029019,2]
[310104061,1704337837769,-150.14,0.00029057,2]
[310104062,1704337837779,-3572.33,0.00029087,2]
[310104063,1704337837790,-250.0,0.00029108,2]
[310104064,1704337837801,-172.27,0.00029126,2]
[310104065,1704337837814,-256.93,0.00029175,2]
[310104066,1704337837824,-200.0,0.00029176,2]
[310104067,1704337837835,-711.79,0.00029441,2]
[310104068,1704337837846,-398.98,0.00029528,2]
[310104069,1704337837859,-564.76508867,0.00029758,2]
[310104070,1704337837871,-2177.34,0.00029818,2]
[310104071,1704337837882,-221.43,0.00029855,2]
[310104072,1704337837893,-1138.0,0.00029855,2]
[310104073,1704337837904,-713.0963,0.000299,2]
[310104074,1704337837914,-1008.3993,0.000299,2]
[310104075,1704337837925,-205.3169,0.000299,2]
[310104076,1704337837934,-232.98,0.00029957,2]
[310104077,1704337837945,-1000.0,0.0003,2]
[310104078,1704337837956,-973.81579629,0.0003,4]
[310104080,1704337837966,-155.0,0.0003,2]
[310104082,1704337837975,-29279.89658607,0.0003,2]
[310104083,1704337837986,-10844.88504016,0.0003,5]
[310104084,1704337837995,-8312.56784099,0.0003,2]
[310104085,1704337838006,-8300.0,0.0003,2]
[310104086,1704337838017,-20000.0,0.0003,2]
[310104087,1704337838027,-225.02058044,0.0003,2]
[310104088,1704337838038,-446.37624117,0.00030135,4]
[310104089,1704337838050,-151.0,0.00030514,30]
[310104090,1704337838061,-150.0,0.00030726,2]
[310104091,1704337838074,-150.0,0.00030732,2]
[310104092,1704337838088,-150.0,0.00030736,2]
[310104093,1704337838098,-150.0,0.00030743,2]
[310104094,1704337838111,-625.8808981,0.00030751,14]
[310104095,1704337838121,-500.0,0.00030751,2]
[310104096,1704337838132,-200.0,0.00030751,2]
[310104097,1704337838141,-500.0,0.00030752,2]
[310104098,1704337838151,-500.0,0.00030752,2]
[310104099,1704337838164,-500.0,0.00030752,2]
[310104100,1704337838174,-500.0,0.00030752,2]
[310104101,1704337838185,-200.0,0.00030752,2]
[310104102,1704337838195,-150.0,0.00030755,2]
[310104103,1704337838205,-191.84485068,0.00030779,2]
[310104104,1704337838214,-150.0,0.00030783,2]
[310104105,1704337838223,-150.0,0.00030784,2]
[310104106,1704337838232,-150.0,0.00030785,2]
[310104107,1704337838241,-150.0,0.00030791,2]
[310104108,1704337838251,-150.0,0.00030836,2]
[310104109,1704337838260,-150.0,0.00030839,2]
[310104110,1704337838270,-150.0,0.00030841,2]
[310104111,1704337838279,-150.0,0.00030844,2]
[310104112,1704337838288,-150.0,0.00030857,2]
[310104113,1704337838298,-150.0,0.00030859,2]
[310104114,1704337838307,-150.0,0.00030863,2]
[310104115,1704337838316,-150.0,0.00030884,2]
[310104116,1704337838326,-392.2693,0.000309,2]
[310104117,1704337838335,-150.0,0.00030909,2]
[310104118,1704337838345,-150.0,0.00030919,2]
[310104119,1704337838355,-150.0,0.00030929,2]
[310104120,1704337838366,-150.0,0.00030933,2]
[310104121,1704337838376,-232.98,0.00030935,2]
[310104122,1704337838386,-150.0,0.0003094,2]
[310104123,1704337838396,-150.0,0.00030947,2]
[310104124,1704337838406,-150.0,0.00030949,2]
[310104125,1704337838416,-150.0,0.00030958,2]
[310104126,1704337838429,-150.0,0.00030961,2]
[310104127,1704337838441,-150.0,0.00030971,2]
[310104128,1704337838451,-150.0,0.00030978,2]
[310104129,1704337838462,-2725.63310959,0.00030998,4]
[310104130,1704337838473,-612.53923761,0.00030998,4]
[310104131,1704337838484,-14062.95973587,0.00030999,2]
[310104132,1704337838494,-819.65046597,0.00030999,4]
[310104133,1704337838504,-69199.30448511,0.00031,2]
[310104134,1704337838515,-600.0,0.00031,32]
[310104135,1704337838525,-509.6239806,0.00031,2]
[310104136,1704337838536,-450.0,0.00031,3]
[310104137,1704337838545,-3000.0,0.00031,2]
[310104138,1704337838554,-779.603136,0.00031,2]
[310104139,1704337838565,-150.0,0.00031,2]
[310104140,1704337838575,-157.40104,0.00031098,2]
[310104141,1704337838584,-151.0,0.00031137,7]
[310104142,1704337838595,-157.40104,0.00031198,2]
[310104143,1704337838605,-500.0,0.00031281,2]
[310104144,1704337838614,-157.40104,0.00031298,2]
[310104145,1704337838624,-172.86,0.00031303,2]
[310104146,1704337838635,-157.40104,0.00031398,2]
[310104147,1704337838646,-1181.93440767,0.00031486,2]
[310104148,1704337838656,-157.40104,0.00031498,2]
[310104149,1704337838667,-500.0,0.00031584,2]
[310104150,1704337838678,-157.40104,0.00031598,2]
[310104151,1704337838688,-208.0,0.000316,2]
[310104152,1704337838698,-157.40104,0.00031698,2]
[310104153,1704337838709,-1000.0,0.000317,2]
[310104154,1704337838719,-209.0,0.00031715,13]
[310104155,1704337838729,-151.0,0.00031772,4]
[310104156,1704337838740,-398.98,0.00031792,2]
[310104157,1704337838751,-157.40104,0.00031798,2]
[310104158,1704337838762,-249.8839255,0.00031799,4]
[310104159,1704337838772,-12091.02229693,0.000318,2]
[310104160,1704337838783,-1000.0,0.000318,4]
[310104161,1704337838793,-500.0,0.00031888,2]
[310104162,1704337838806,-157.40104,0.00031898,2]
[310104163,1704337838816,-232.98,0.00031914,2]
[310104164,1704337838826,-157.40104,0.00031998,2]
[310104165,1704337838835,-520.0,0.00032,5]
[310104166,1704337838845,-16429.85941187,0.00032,2]
[310104167,1704337838854,-5000.0,0.00032,2]
[310104168,1704337838865,-1500.0,0.00032,8]
[310104169,1704337838876,-1208.0,0.00032,2]
[310104170,1704337838887,-297.22767682,0.00032,4]
[310104171,1704337838897,-196.54957546,0.00032,33]
[310104172,1704337838906,-779.603136,0.00032,2]
[310104173,1704337838917,-153.84,0.00032045,2]
[310104174,1704337838926,-1158.26851445,0.00032092,5]
[310104175,1704337838936,-157.40104,0.00032098,2]
[310104176,1704337838945,-601.13859253,0.0003215,14]
[310104177,1704337838954,-500.0,0.00032192,2]
[310104178,1704337838964,-157.40104,0.00032198,2]
[310104179,1704337838974,-157.40104,0.00032298,2]
[310104180,1704337838985,-1796.91215548,0.000323,2]
[310104181,1704337838995,-157.40104,0.00032398,2]
[310104182,1704337839005,-3894.51067298,0.00032417,2]
[310104183,1704337839017,-151.0,0.00032421,2]
[310104184,1704337839027,-10844.7491056,0.0003249,4]
[310104185,1704337839037,-500.0,0.00032495,2]
[310104186,1704337839047,-157.40104,0.00032498,2]
[310104187,1704337839058,-204.63252394,0.00032498,4]
[310104188,1704337839068,-16532.07365997,0.000325,2]
[310104189,1704337839078,-317.0,0.00032547,2]
[310104190,1704337839088,-10844.7491056,0.00032585,4]
[310104191,1704337839098,-171.1901232,0.00032594,15]
[310104192,1704337839108,-16868.09996597,0.00032595,7]
[310104193,1704337839117,-5827.14705121,0.00032595,7]
[310104194,1704337839127,-157.40104,0.00032598,2]
[310104195,1704337839136,-175.77,0.000326,2]
[310104196,1704337839158,-612.90272694,0.000326,2]
[310104197,1704337839168,-155.03077476,0.000326,20]
[310104198,1704337839177,-1158.26851442,0.00032636,6]
[310104199,1704337839187,-800.0,0.00032646,2]
[310104200,1704337839197,-247.19,0.00032669,2]
[310104201,1704337839207,-345.69653808,0.00032676,2]
[310104202,1704337839216,-5422.37455282,0.0003269,4]
[310104203,1704337839226,-157.40104,0.00032698,2]
[310104204,1704337839235,-150.0,0.00032699,2]
[310104205,1704337839244,-4333.72859587,0.000327,60]
[310104206,1704337839254,-157.51272257,0.000327,2]
[310104207,1704337839263,-150.99346567,0.000327,2]
[310104208,1704337839273,-251.81737986,0.000327,2]
[310104209,1704337839282,-1488.81718835,0.000327,2]
[310104210,1704337839292,-1488.81718819,0.000327,2]
[310104211,1704337839301,-1488.81718819,0.000327,2]
[310104212,1704337839311,-1488.81718819,0.000327,2]
[310104213,1704337839320,-1488.81718819,0.000327,2]
[310104214,1704337839330,-1488.81718819,0.000327,2]
[310104215,1704337839339,-1488.81718819,0.000327,2]
[310104216,1704337839349,-1488.81718819,0.000327,2]
[310104217,1704337839358,-1488.81718819,0.000327,2]
[310104218,1704337839368,-1488.81718819,0.000327,2]
[310104219,1704337839378,-1488.81718819,0.000327,2]
[310104220,1704337839387,-1488.81718819,0.000327,2]
[310104221,1704337839397,-1488.81718819,0.000327,2]
[310104222,1704337839406,-1488.81718819,0.000327,2]
[310104223,1704337839416,-836.63326343,0.00032766,14]
[310104224,1704337839426,-32534.2473169,0.00032766,4]
[310104225,1704337839435,-250.0,0.00032776,2]
[310104226,1704337839445,-7500.0,0.00032776,2]
[310104227,1704337839455,-55555.0,0.00032776,3]
[310104228,1704337839465,-2000.0,0.00032776,4]
[310104229,1704337839475,-383.04884607,0.00032781,7]
[310104230,1704337839484,-188.74765664,0.00032781,7]
[310104231,1704337839494,-157.40104,0.00032798,2]
[310104232,1704337839504,-500.0,0.00032799,2]
[310104233,1704337839514,-1000.0,0.000328,5]
[310104234,1704337839524,-200.0,0.00032823,2]
[310104235,1704337839534,-1488.81718819,0.00032847,2]
[310104236,1704337839543,-500.0,0.00032848,3]
[310104237,1704337839554,-187.99129847,0.00032856,2]
[310104238,1704337839564,-5422.37455282,0.00032863,4]
[310104239,1704337839573,-157.58,0.00032865,2]
[310104240,1704337839583,-168093.611137,0.00032866,4]
[310104241,1704337839593,-3435.75602485,0.00032873,2]
[310104242,1704337839602,-284.16815248,0.00032874,4]
[310104243,1704337839616,-500.0,0.00032876,2]
[310104244,1704337839625,-618.06452242,0.00032876,2]
[310104245,1704337839635,-500.0,0.00032876,2]
[310104246,1704337839644,-528.77154423,0.00032876,2]
[310104247,1704337839654,-518.84676019,0.00032876,2]
[310104248,1704337839664,-529.39661113,0.00032876,2]
[310104249,1704337839674,-518.47764028,0.00032876,2]
[310104250,1704337839683,-500.0,0.00032876,2]
[310104251,1704337839693,-500.0,0.00032876,2]
[310104252,1704337839704,-500.0,0.00032876,2]
[310104253,1704337839713,-500.0,0.00032876,2]
[310104254,1704337839724,-514.53119214,0.00032876,2]
[310104255,1704337839733,-509.88222268,0.00032876,2]
[310104256,1704337839743,-327.46051275,0.00032876,2]
[310104257,1704337839752,-500.0,0.00032876,2]
[310104258,1704337839761,-628.5057821,0.00032876,2]
[310104259,1704337839771,-500.0,0.00032876,2]